lending/lending_fUSD_20240830
["ID","MTS","AMOUNT","RATE_DAILY","PERIOD"]
[336666150,1725005414189,167.47,0.00010959,2]
[336666151,1725005431451,-250.0,0.00012,2]
[336666152,1725005431461,-586.89298034,0.00012111,2]
[336666153,1725005431473,-51.72202246,0.00012111,2]
[336666154,1725005431482,-300.0,0.00014,2]
[336666155,1725005431493,-381.31769537,0.00015499,2]
[336666156,1725005431503,-3735.97,0.00018435,2]
[336666157,1725005431512,-157.56,0.00018549,2]
[336666158,1725005431522,-2813.0,0.000188,5]
[336666159,1725005431531,-3.80143393,0.00019452,2]
[336666160,1725005431543,-147.18856607,0.00019452,2]
[336666161,1725005431552,-219.6,0.00019726,2]
[336666162,1725005431561,-150.99,0.00019726,2]
[336666163,1725005431570,-150.99,0.00019726,2]
[336666164,1725005431579,-3224.7,0.0002,2]
[336666165,1725005431588,-274.26,0.00020068,2]
[336666166,1725005431598,-284.14,0.00020068,2]
[336666167,1725005431607,-299.99,0.00020068,7]
[336666168,1725005431617,-499.99,0.00020068,2]
[336666169,1725005431626,-598.56,0.00020068,2]
[336666170,1725005431636,-3796.23,0.00020074,2]
[336666171,1725005431646,-3745.1,0.00020543,2]
[336666172,1725005431655,-1017.51,0.00021206,30]
[336666173,1725005431665,-194.14,0.00021215,2]
[336666174,1725005431674,-10000.0,0.00021561,2]
[336666175,1725005431684,-250.0,0.00021565,2]
[336666176,1725005431693,-195.0,0.00021569,2]
[336666181,1725005432031,-5488.40528502,0.0002157,2]
[336666182,1725005432048,-2300.0,0.0002157,2]
[336666183,1725005432059,-734.6075021,0.0002157,2]
[336666184,1725005432070,-15376.98721288,0.0002157,2]
[336666185,1725005432079,-169.12688672,0.000216,2]
[336666186,1725005432088,-17.73125044,0.00021684,30]
[336666187,1725005432099,-400.61874956,0.00021684,30]
[336666188,1725005432108,-211.48,0.00021692,2]
[336666189,1725005432118,-250.0,0.00021721,2]
[336666190,1725005432127,-150.0,0.00021743,2]
[336666191,1725005432136,-152.05,0.00021918,2]
[336666192,1725005432146,-426.77,0.00021918,2]
[336666193,1725005432155,-250.0,0.00021945,2]
[336666194,1725005432164,-189.69,0.00022057,2]
[336666195,1725005432174,-226.81,0.00022195,2]
[336666196,1725005432183,-598.56,0.00022331,2]
[336666197,1725005432192,-154.91,0.00023013,2]
[336666198,1725005432201,-154.91,0.00023026,2]
[336666199,1725005432211,-154.91,0.00023039,2]
[336666200,1725005432220,-154.91,0.00023052,2]
[336666201,1725005432229,-154.91,0.00023065,2]
[336666202,1725005432240,-154.91,0.00023077,2]
[336666203,1725005432258,-154.91,0.0002309,2]
[336666204,1725005432267,-154.91,0.00023103,2]
[336666205,1725005432276,-3739.3,0.00023113,2]
[336666206,1725005432285,-154.91,0.00023116,2]
[336666207,1725005432293,-154.91,0.00023129,2]
[336666208,1725005432303,-814.94014633,0.00023343,2]
[336666209,1725005432314,-65.05985367,0.00023343,2]
[336666210,1725005432323,-180.0,0.00023355,2]
[336666211,1725005432332,-159.22,0.00023915,2]
[336666212,1725005432341,-364.2109,0.0002412,2]
[336666213,1725005432350,-135.42938512,0.00024183,2]
[336666214,1725005432362,-7098.22734583,0.00024183,2]
[336666215,1725005432372,-300.75376989,0.00024183,2]
[336666225,1725005437721,-3514.60249916,0.00024183,2]
[336666226,1725005437731,-500.0,0.0002422,2]
[336666227,1725005437740,-132612.91566573,0.0002422,2]
[336666410,1725005439632,-1489.433276,0.0002422,2]
[336666438,1725005439844,-398.62975953,0.0002422,2]
[336666686,1725005443399,-1548.28899733,0.0002422,2]
[336666687,1725005445468,-281.96977105,0.0002422,2]
[336666688,1725005445480,-21966.18073036,0.0002422,2]
[336666689,1725005445490,-1000.0,0.0002422,2]
[336666690,1725005445499,-758.22510082,0.000244,2]
[336666692,1725005725032,-2096.0,0.000176,3]
[336666695,1725006303662,152.17,0.00010959,2]
[336666697,1725006308142,1497.83,0.00011,2]
[336666725,1725006405693,-3000.0,0.00010997,2]
[336666727,1725006457020,-57.33767115,0.00010997,2]
[336666728,1725006457032,-5885.3246577,0.00010997,2]
[336666729,1725006457042,-57.33767115,0.00010998,2]
[336666733,1725006472010,171.917184,0.00010899,2]
[336666738,1725006518866,211.25016194,0.0001,2]
[336666744,1725006585308,316.0156951,0.000109,2]
[336666759,1725006631605,-150.78,0.0001099,2]
[336666761,1725006631615,-300.0,0.00010998,2]
[336666763,1725006631625,-500.0,0.00010999,2]
[336666764,1725006631634,-500.0,0.00010999,2]
[336666766,1725006631643,-183.23314245,0.00010999,2]
[336666768,1725006631652,-500.0,0.00010999,2]
[336666770,1725006631662,-588.31549017,0.00010999,2]
[336666772,1725006631671,-500.0,0.00010999,2]
[336666774,1725006631680,-365.27482632,0.00010999,2]
[336666775,1725006631690,-500.0,0.00010999,2]
[336666776,1725006631699,-500.0,0.00010999,2]
[336666777,1725006631708,-292.64094558,0.00011,2]
[336666778,1725006631723,-499.6,0.00011,2]
[336666779,1725006631734,-999.9006,0.00011,2]
[336666780,1725006631745,-1000.3932,0.00011,2]
[336666781,1725006631789,-2613.0715308,0.00011,2]
[336666782,1725006631802,-5599.02414876,0.00011,2]
[336666783,1725006631815,-3576.97871244,0.00011,2]
[336666784,1725006631828,-5326.7295626,0.00011,2]
[336666785,1725006631839,-657.30298068,0.00011,2]
[336666786,1725006631851,-8423.80945376,0.00011,2]
[336666787,1725006631867,-548.6778876,0.00011,2]
[336666788,1725006631879,-355.8908814,0.00011,2]
[336666789,1725006631890,-252.67249884,0.00011,2]
[336666790,1725006631902,-696.77431602,0.00011,2]
[336666791,1725006631913,-544.02,0.00011,2]
[336666798,1725006637726,-5961.7748859,0.00010997,2]
[336666799,1725006637737,-101.1345185,0.00011,2]
[336666800,1725006637786,-275.85393769,0.00011,2]
[336666801,1725006637801,-925.30673529,0.00011,2]
[336666802,1725006637815,-8542.37910144,0.00011,2]
[336666803,1725006637828,-585.36969225,0.00011,2]
[336666804,1725006637842,-404.28989155,0.00011,2]
[336666805,1725006637863,-484.5265281,0.00011,2]
[336666806,1725006637876,-492.40723222,0.00011,2]
[336666807,1725006637889,-597.27755676,0.00011,2]
[336666808,1725006637982,-56540.73977011,0.00011,2]
[336666809,1725006637995,-5406.64754168,0.00011,2]
[336666810,1725006638008,-663636.46506473,0.00011,2]
[336666811,1725006638021,-2043.10614724,0.00011,2]
[336666812,1725006638040,-3160.19150616,0.00011,2]
[336666813,1725006638053,-7830.0,0.00011,2]
[336666814,1725006638066,-715.94872379,0.00011,2]
[336666966,1725006639743,-502.50354171,0.00011,2]
[336666968,1725006639755,-3738.49741325,0.00011,2]
[336666970,1725006639769,-3729.54558157,0.00011,2]
[336666972,1725006639786,-293370.51578938,0.00011,2]
[336666975,1725006639798,-382.03485,0.00011,2]
[336666977,1725006639809,-171.91718399,0.00011986,2]
[336666979,1725006639820,-420.0,0.00012086,2]
[336666981,1725006639832,-316.01569506,0.0001289,2]
[336666983,1725006639843,-587.0,0.00013281,2]
[336666985,1725006639855,-195.0,0.00014594,2]
[336666987,1725006639865,-226.57,0.00014594,2]
[336666989,1725006639876,-316.01569506,0.00014879,2]
[336666991,1725006639887,-382.03485,0.00016,2]
[336666993,1725006639897,-316.01569506,0.00016869,2]
[336666996,1725006639908,-2096.0,0.000175,3]
[336666998,1725006639919,-150.68352799,0.00017512,2]
[336667000,1725006639929,-447.0,0.00017876,2]
[336667001,1725006639940,-150.0,0.00017876,2]
[336667004,1725006639950,-1898.0,0.00017876,2]
[336667006,1725006639962,-2032.92902187,0.00018019,2]
[336667008,1725006639976,-197.03,0.0001812,2]
[336667010,1725006639987,-157.56,0.00018466,2]
[336667012,1725006639998,-499.99,0.00018466,2]
[336667014,1725006640009,-2032.92902178,0.00018776,2]
[336667016,1725006640020,-316.01569506,0.00018859,2]
[336667018,1725006640031,-2032.92902178,0.00019533,2]
[336667020,1725006640042,-162.95327982,0.0002,30]
[336667022,1725006640053,-2032.92902178,0.0002029,2]
[336667024,1725006640064,-630.85,0.00020648,2]
[336667027,1725006640076,-1074.43,0.00020745,2]
[336667029,1725006640087,-316.01569506,0.00020849,2]
[336667031,1725006640098,-382.03486,0.00021,2]
[336667033,1725006640109,-2032.92902178,0.00021047,2]
[336667035,1725006640120,-302.11,0.00021206,2]
[336667037,1725006640130,-200.0,0.00021206,2]
[336667039,1725006640141,-250.0,0.00021206,2]
[336667042,1725006640153,-23900.0,0.00021206,2]
[336667044,1725006640164,-175.61,0.00021206,2]
[336667046,1725006640175,-200.0,0.00021206,2]
[336667048,1725006640186,-910.0,0.00021206,2]
[336667050,1725006640196,-250.0,0.00021303,2]
[336667052,1725006640207,-633.53,0.0002143,2]
[336667054,1725006640218,-4589.99,0.00021481,2]
[336667056,1725006640229,-181.45,0.00021509,2]
[336667058,1725006640240,-500.0,0.00021543,2]
[336667061,1725006640251,-417.09,0.00021589,30]
[336667062,1725006640261,-1987.2582953,0.00021599,2]
[336667065,1725006640272,-3945.06,0.00021601,2]
[336667067,1725006640283,-2032.92902178,0.00021803,2]
[336667069,1725006640294,-426.78,0.00021918,2]
[336667071,1725006640306,-228.46,0.00022103,2]
[336667073,1725006640317,-152.05,0.00022177,2]
[336667075,1725006640327,-250.0,0.00022383,2]
[336667077,1725006640338,-196.09,0.00022383,2]
[336667079,1725006640348,-194.75826541,0.00022414,2]
[336667081,1725006640359,-2032.92902178,0.0002256,2]
[336667084,1725006640370,-150.0,0.00022649,2]
[336667086,1725006640380,-179.72,0.00022719,2]
[336667088,1725006640390,-316.01569506,0.00022838,2]
[336667090,1725006640401,-630.85,0.00022912,2]
[336667092,1725006640411,-200.0,0.00023,2]
[336667094,1725006640422,-3731.12,0.00023163,2]
[336667096,1725006640434,-2879.0,0.000233,2]
[336667098,1725006640445,-1432.37232844,0.000233,2]
[336667101,1725006640456,-2032.92902178,0.00023317,2]
[336667103,1725006640467,-180.0,0.00023327,2]
[336667105,1725006640478,-172.47,0.00023366,2]
[336667107,1725006640488,-3819.5,0.00023576,2]
[336667109,1725006640498,-910.0,0.00023857,2]
[336667111,1725006640510,-699.81531,0.000239,2]
[336667113,1725006640521,-1300.0,0.00024,13]
[336667116,1725006640531,-2032.92902178,0.00024074,2]
[336667118,1725006640541,-3000.0,0.000241,2]
[336667120,1725006640551,-801.464,0.000241,2]
[336667122,1725006640562,-963.8722,0.000241,2]
[336667124,1725006640573,-13776.6469,0.000241,2]
[336667126,1725006640583,-3791.5065,0.000241,2]
[336667128,1725006640595,-181.45,0.00024197,2]
[336667130,1725006640605,-250000.0,0.000242,10]
[336667133,1725006640616,-182.09092873,0.0002421,2]
[336667135,1725006640629,-800.0,0.0002422,2]
[336667137,1725006640639,-12484.38772821,0.0002448,2]
[336667139,1725006640650,-150.082776,0.00024498,6]
[336667141,1725006640663,-150.083016,0.00024598,6]
[336667143,1725006640673,-150.083016,0.00024598,5]
[336667145,1725006640684,-150.083016,0.00024598,4]
[336667148,1725006640695,-150.083016,0.00024598,3]
[336667150,1725006640707,-500.0,0.00024657,4]
[336667152,1725006640718,-500.0,0.00024657,4]
[336667154,1725006640728,-500.0,0.00024657,4]
[336667156,1725006640738,-500.0,0.00024657,4]
[336667158,1725006640749,-1250.0,0.00024657,4]
[336667160,1725006640759,-1250.0,0.00024657,4]
[336667162,1725006640770,-1250.0,0.00024657,4]
[336667164,1725006640780,-1250.0,0.00024657,4]
[336667167,1725006640791,-500.0,0.00024657,4]
[336667169,1725006640803,-500.0,0.00024657,4]
[336667171,1725006640814,-500.0,0.00024657,4]
[336667173,1725006640824,-500.0,0.00024657,4]
[336667175,1725006640834,-500.0,0.00024657,4]
[336667177,1725006640844,-500.0,0.00024657,4]
[336667179,1725006640854,-500.0,0.00024657,4]
[336667181,1725006640864,-500.0,0.00024657,4]
[336667183,1725006640875,-500.0,0.00024657,4]
[336667186,1725006640885,-500.0,0.00024657,4]
[336667188,1725006640895,-500.0,0.00024657,4]
[336667190,1725006640905,-500.0,0.00024657,4]
[336667192,1725006640915,-500.0,0.00024657,4]
[336667194,1725006640926,-159.56293,0.00024657,4]
[336667196,1725006640936,-159.56293,0.00024657,4]
[336667198,1725006640947,-159.56293,0.00024657,4]
[336667200,1725006640957,-159.56293,0.00024657,4]
[336667202,1725006640968,-159.56293,0.00024657,4]
[336667204,1725006640978,-159.56293,0.00024657,4]
[336667206,1725006640988,-159.56293,0.00024657,4]
[336667208,1725006640999,-156.061097,0.00024657,4]
[336667211,1725006641009,-156.061097,0.00024657,4]
[336667213,1725006641019,-156.061097,0.00024657,4]
[336667215,1725006641030,-500.0,0.00024657,4]
[336667217,1725006641040,-156.061097,0.00024657,4]
[336667219,1725006641051,-500.0,0.00024657,4]
[336667221,1725006641061,-500.0,0.00024657,4]
[336667223,1725006641071,-500.0,0.00024657,4]
[336667225,1725006641082,-500.0,0.00024657,4]
[336667227,1725006641092,-500.0,0.00024657,4]
[336667229,1725006641104,-317.10535159,0.00024657,4]
[336667231,1725006641114,-156.118422,0.00024657,4]
[336667233,1725006641126,-156.118422,0.00024657,4]
[336667235,1725006641138,-156.118422,0.00024657,4]
[336667238,1725006641151,-156.118422,0.00024657,4]
[336667240,1725006641162,-156.118422,0.00024657,4]
[336667242,1725006641172,-156.118422,0.00024657,4]
[336667244,1725006641183,-153.11888,0.00024657,4]
[336667246,1725006641193,-153.11888,0.00024657,4]
[336667249,1725006641203,-377.909607,0.00024657,4]
[336667251,1725006641214,-150.781888,0.00024657,4]
[336667253,1725006641224,-575.18,0.00024657,4]
[336667255,1725006641234,-377.909607,0.00024657,4]
[336667257,1725006641245,-377.909607,0.00024657,4]
[336667259,1725006641255,-377.909607,0.00024657,4]
[336667261,1725006641266,-377.909607,0.00024657,4]
[336667263,1725006641276,-377.909607,0.00024657,4]
[336667265,1725006641287,-377.909607,0.00024657,4]
[336667267,1725006641298,-377.909607,0.00024657,4]
[336667269,1725006641309,-377.909607,0.00024657,4]
[336667272,1725006641320,-377.909607,0.00024657,4]
[336667273,1725006641330,-377.909607,0.00024657,4]
[336667274,1725006641341,-377.909607,0.00024657,4]
[336667275,1725006641351,-377.909607,0.00024657,4]
[336667276,1725006641361,-377.909607,0.00024657,4]
[336667277,1725006641371,-377.909607,0.00024657,4]
[336667278,1725006641382,-377.909607,0.00024657,4]
[336667279,1725006641392,-377.909607,0.00024657,4]
[336667280,1725006641402,-377.909607,0.00024657,4]
[336667281,1725006641413,-155.628618,0.00024657,4]
[336667283,1725006641424,-377.909607,0.00024657,4]
[336667285,1725006641434,-155.628618,0.00024657,4]
[336667287,1725006641445,-377.909607,0.00024657,4]
[336667289,1725006641456,-155.628618,0.00024657,4]
[336667291,1725006641467,-155.628618,0.00024657,4]
[336667294,1725006641478,-155.628618,0.00024657,4]
[336667296,1725006641489,-155.628618,0.00024657,4]
[336667298,1725006641503,-155.628618,0.00024657,4]
[336667300,1725006641513,-500.0,0.00024657,4]
[336667302,1725006641524,-500.0,0.00024657,4]
[336667305,1725006641534,-500.0,0.00024657,4]
[336667307,1725006641544,-500.0,0.00024657,4]
[336667309,1725006641555,-500.0,0.00024657,4]
[336667311,1725006641565,-345.31935886,0.00024657,4]
[336667313,1725006641575,-164.208405,0.00024657,4]
[336667315,1725006641586,-164.208405,0.00024657,4]
[336667395,1725006642392,-164.208405,0.00024657,4]
[336667399,1725006642422,-164.208405,0.00024657,4]
[336667401,1725006642435,-164.208405,0.00024657,4]
[336667403,1725006642444,-156.452688,0.00024657,4]
[336667405,1725006642454,-156.452688,0.00024657,4]
[336667407,1725006642463,-156.452688,0.00024657,4]
[336667409,1725006642473,-156.452688,0.00024657,4]
[336667411,1725006642482,-156.452688,0.00024657,4]
[336667413,1725006642491,-156.452688,0.00024657,4]
[336667415,1725006642500,-156.452688,0.00024657,4]
[336667417,1725006642510,-156.452688,0.00024657,4]
[336667419,1725006642519,-156.452688,0.00024657,4]
[336667421,1725006642529,-156.452688,0.00024657,4]
[336667423,1725006642538,-500.0,0.00024657,4]
[336667425,1725006642547,-156.040454,0.00024657,4]
[336667426,1725006642556,-156.040454,0.00024657,4]
[336667428,1725006642566,-156.040454,0.00024657,4]
[336667430,1725006642575,-156.040454,0.00024657,4]
[336667432,1725006642585,-521.27837772,0.00024657,4]
[336667434,1725006642594,-500.0,0.00024657,4]
[336667436,1725006642603,-500.0,0.00024657,4]
[336667439,1725006642612,-520.434224,0.00024657,4]
[336667442,1725006642625,-500.0,0.00024657,4]
[336667444,1725006642635,-500.0,0.00024657,4]
[336667446,1725006642644,-500.0,0.00024657,4]
[336667448,1725006642654,-517.80101324,0.00024657,4]
[336667450,1725006642664,-500.0,0.00024657,4]
[336667452,1725006642674,-500.0,0.00024657,4]
[336667454,1725006642683,-500.0,0.00024657,4]
[336667456,1725006642692,-517.40695459,0.00024657,4]
[336667458,1725006642702,-498.93,0.00024657,4]
[336667460,1725006642712,-500.0,0.00024657,4]
[336667461,1725006642723,-500.0,0.00024657,4]
[336667464,1725006642732,-586.98,0.00024657,4]
[336667465,1725006642743,-500.0,0.00024657,4]
[336667467,1725006642752,-500.0,0.00024657,4]
[336667469,1725006642761,-500.0,0.00024657,4]
[336667471,1725006642771,-509.96260373,0.00024657,4]
[336667473,1725006642780,-500.0,0.00024657,4]
[336667475,1725006642789,-500.0,0.00024657,4]
[336667477,1725006642798,-500.0,0.00024657,4]
[336667479,1725006642807,-500.0,0.00024657,4]
[336667481,1725006642817,-500.0,0.00024657,4]
[336667483,1725006642826,-500.0,0.00024657,4]
[336667485,1725006642836,-268.65,0.00024657,4]
[336667487,1725006642845,-536.0226024,0.00024657,4]
[336667489,1725006642854,-500.0,0.00024657,4]
[336667491,1725006642864,-500.0,0.00024657,4]
[336667493,1725006642873,-507.81781115,0.00024657,4]
[336667495,1725006642883,-500.0,0.00024657,4]
[336667497,1725006642892,-447.36986591,0.00024657,4]
[336667499,1725006642902,-500.0,0.00024657,4]
[336667501,1725006642911,-156.040454,0.00024657,4]
[336667503,1725006642920,-156.040454,0.00024657,4]
[336667505,1725006642931,-156.040454,0.00024657,4]
[336667507,1725006642940,-156.040454,0.00024657,4]
[336667509,1725006642949,-156.040454,0.00024657,4]
[336667511,1725006642959,-156.040454,0.00024657,4]
[336667513,1725006642972,-156.040454,0.00024657,4]
[336667515,1725006642982,-500.0,0.00024657,4]
[336667517,1725006642991,-156.040454,0.00024657,4]
[336667519,1725006643000,-164.554806,0.00024657,4]
[336667521,1725006643009,-155.900421,0.00024657,4]
[336667523,1725006643019,-155.900421,0.00024657,4]
[336667525,1725006643027,-155.420654,0.00024657,4]
[336667526,1725006643036,-155.420654,0.00024657,4]
[336667528,1725006643045,-155.420654,0.00024657,4]
[336667530,1725006643054,-155.420654,0.00024657,4]
[336667532,1725006643064,-155.420654,0.00024657,4]
[336667534,1725006643073,-155.420654,0.00024657,4]
[336667536,1725006643082,-155.420654,0.00024657,4]
[336667538,1725006643091,-155.420654,0.00024657,4]
[336667540,1725006643100,-501.35737248,0.00024657,4]
[336667542,1725006643109,-500.0,0.00024657,4]
[336667544,1725006643118,-510.63133422,0.00024657,4]
[336667546,1725006643127,-500.0,0.00024657,4]
[336667548,1725006643136,-500.0,0.00024657,4]
[336667550,1725006643145,-500.0,0.00024657,4]
[336667552,1725006643154,-500.0,0.00024657,4]
[336667554,1725006643163,-500.0,0.00024657,4]
[336667556,1725006643172,-500.0,0.00024657,4]
[336667558,1725006643181,-500.0,0.00024657,4]
[336667560,1725006643190,-500.0,0.00024657,4]
[336667562,1725006643200,-502.50842172,0.00024657,4]
[336667564,1725006643209,-500.0,0.00024657,4]
[336667566,1725006643221,-500.0,0.00024657,4]
[336667568,1725006643230,-500.0,0.00024657,4]
[336667570,1725006643239,-500.0,0.00024657,4]
[336667572,1725006643248,-500.0,0.00024657,4]
[336667574,1725006643257,-500.0,0.00024657,4]
[336667577,1725006643267,-500.0,0.00024657,4]
[336667581,1725006643277,-500.0,0.00024657,4]
[336667584,1725006643286,-519.77,0.00024657,4]
[336667585,1725006643295,-500.0,0.00024657,4]
[336667588,1725006643304,-500.0,0.00024657,4]
[336667591,1725006643313,-500.0,0.00024657,4]
[336667593,1725006643322,-500.0,0.00024657,4]
[336667595,1725006643331,-500.0,0.00024657,4]
[336667596,1725006643339,-500.0,0.00024657,4]
[336667598,1725006643348,-645.97,0.00024657,4]
[336667600,1725006643357,-500.0,0.00024657,4]
[336667602,1725006643367,-500.0,0.00024657,4]
[336667604,1725006643376,-155.760387,0.00024657,4]
[336667606,1725006643385,-155.760387,0.00024657,4]
[336667608,1725006643394,-155.760387,0.00024657,4]
[336667609,1725006643403,-155.760387,0.00024657,4]
[336667611,1725006643412,-154.44296,0.00024657,4]
[336667613,1725006643421,-154.44296,0.00024657,4]
[336667615,1725006643430,-154.44296,0.00024657,4]
[336667617,1725006643440,-154.44296,0.00024657,4]
[336667619,1725006643449,-154.44296,0.00024657,4]
[336667621,1725006643458,-154.44296,0.00024657,4]
[336667623,1725006643467,-155.420654,0.00024657,4]
[336667625,1725006643486,-154.44296,0.00024657,4]
[336667627,1725006643495,-155.420654,0.00024657,4]
[336667629,1725006643505,-154.44296,0.00024657,4]
[336667631,1725006643514,-154.44296,0.00024657,4]
[336667633,1725006643523,-154.44296,0.00024657,4]
[336667635,1725006643533,-154.44296,0.00024657,4]
[336667636,1725006643542,-154.44296,0.00024657,4]
[336667638,1725006643551,-154.44296,0.00024657,4]
[336667640,1725006643560,-155.420654,0.00024657,4]
[336667642,1725006643569,-154.44296,0.00024657,4]
[336667644,1725006643579,-154.44296,0.00024657,4]
[336667646,1725006643588,-155.420654,0.00024657,4]
[336667648,1725006643597,-154.44296,0.00024657,4]
[336667650,1725006643607,-154.44296,0.00024657,4]
[336667652,1725006643618,-154.44296,0.00024657,4]
[336667654,1725006643629,-154.44296,0.00024657,4]
[336667656,1725006643638,-154.44296,0.00024657,4]
[336667658,1725006643647,-155.760388,0.00024657,4]
[336667660,1725006643656,-155.760388,0.00024657,4]
[336667662,1725006643666,-155.760388,0.00024657,4]
[336667664,1725006643675,-155.760388,0.00024657,4]
[336667666,1725006643685,-155.760388,0.00024657,4]
[336667668,1725006643695,-155.760388,0.00024657,4]
[336667670,1725006643705,-155.420654,0.00024657,4]
[336667672,1725006643715,-155.420654,0.00024657,4]
[336667674,1725006643730,-155.420654,0.00024657,4]
[336667676,1725006643740,-155.760388,0.00024657,4]
[336667678,1725006643750,-155.760388,0.00024657,4]
[336667680,1725006643761,-155.760388,0.00024657,4]
[336667682,1725006643770,-155.760388,0.00024657,4]
[336667684,1725006643779,-155.760388,0.00024657,4]
[336667686,1725006643790,-163.612408,0.00024657,4]
[336667688,1725006643800,-163.612408,0.00024657,4]
[336667689,1725006643809,-163.612408,0.00024657,4]
[336667690,1725006643818,-163.612408,0.00024657,4]
[336667691,1725006643827,-500.0,0.00024657,4]
[336667692,1725006643837,-398.16,0.00024657,4]
[336667693,1725006643847,-291.59389572,0.00024657,4]
[336667694,1725006643857,-500.0,0.00024657,4]
[336667695,1725006643866,-500.0,0.00024657,4]
[336667696,1725006643876,-500.0,0.00024657,4]
[336667697,1725006643885,-500.0,0.00024657,4]
[336667698,1725006643894,-500.0,0.00024657,4]
[336667699,1725006643903,-500.0,0.00024657,4]
[336667700,1725006643912,-500.0,0.00024657,4]
[336667701,1725006643921,-500.0,0.00024657,4]
[336667702,1725006643930,-500.0,0.00024657,4]
[336667704,1725006643939,-500.0,0.00024657,4]
[336667706,1725006643949,-500.0,0.00024657,2]
[336667707,1725006643957,-500.0,0.00024657,2]
[336667710,1725006643967,-500.0,0.00024657,4]
[336667711,1725006643977,-364.39814942,0.00024657,4]
[336667713,1725006643986,-500.0,0.00024657,4]
[336667715,1725006643995,-168.633638,0.00024657,4]
[336667717,1725006644005,-163.612408,0.00024657,4]
[336667719,1725006644014,-5563.39,0.00024657,4]
[336667721,1725006644024,-2878.76,0.00024657,4]
[336667723,1725006644034,-3013.91,0.00024657,4]
[336667725,1725006644043,-2176.16,0.00024657,4]
[336667727,1725006644053,-500.0,0.00024657,4]
[336667729,1725006644062,-2289.31,0.00024657,4]
[336667731,1725006644071,-4274.72,0.00024657,4]
[336667733,1725006644080,-500.0,0.00024657,4]
[336667735,1725006644089,-2720.6,0.00024657,4]
[336667737,1725006644098,-500.0,0.00024657,4]
[336667739,1725006644107,-2387.61,0.00024657,4]
[336667741,1725006644116,-500.0,0.00024657,4]
[336667743,1725006644125,-1702.12,0.00024657,4]
[336667745,1725006644134,-500.0,0.00024657,4]
[336667746,1725006644143,-562.18,0.00024657,4]
[336667748,1725006644152,-295.40731329,0.00024657,4]
[336667750,1725006644162,-500.0,0.00024657,4]
[336667752,1725006644170,-500.0,0.00024657,4]
[336667754,1725006644180,-500.0,0.00024657,4]
[336667756,1725006644189,-500.0,0.00024657,4]
[336667758,1725006644199,-500.0,0.00024657,4]
[336667760,1725006644208,-500.0,0.00024657,4]
[336667762,1725006644219,-500.0,0.00024657,4]
[336667764,1725006644228,-3693.62,0.00024657,4]
[336667766,1725006644237,-5955.19,0.00024657,4]
[336667768,1725006644247,-7217.32,0.00024657,4]
[336667770,1725006644256,-7477.8,0.00024657,4]
[336667772,1725006644265,-544.46,0.00024657,4]
[336667774,1725006644274,-5770.62,0.00024657,4]
[336667776,1725006644284,-5064.79,0.00024657,4]
[336667778,1725006644294,-500.0,0.00024657,4]
[336667780,1725006644303,-6050.84,0.00024657,4]
[336667781,1725006644313,-1542.74,0.00024657,4]
[336667783,1725006644323,-500.0,0.00024657,4]
[336667785,1725006644333,-3818.25,0.00024657,4]
[336667787,1725006644342,-3417.55,0.00024657,4]